bitfinex-derivatives/quotes_SOLF0:USTF0_20260310
["timestamp","ask_amount","ask_price","bid_price","bid_amount"]
[1773176575615,3.44689132,86.19,86.141,3.72621622]
[1773176577322,3.44689132,86.19,86.158,10.445]
[1773176577511,3.44689132,86.19,86.159,3.72621622]
[1773176578318,14.28637138,86.212,86.17,3.72621622]
[1773176578515,3.44689132,86.2,86.17,3.72621622]
[1773176579423,3.44689132,86.2,86.172,10.443]
[1773176580522,3.44689132,86.2,86.173,3.72621622]
[1773176580723,3.84837138,86.21,86.131,20.897]
[1773176580724,7.2952627,86.21,86.175,3.72621622]
[1773176582425,3.84837138,86.239,86.181,3.72621622]
[1773176582918,3.44689132,86.23,86.181,3.72621622]
[1773176583121,3.44689132,86.23,86.204,10.439]
[1773176583618,3.84837138,86.239,86.204,10.439]
[1773176584127,3.84837138,86.239,86.197,14.16621622]
[1773176584319,3.84837138,86.239,86.197,3.72621622]
[1773176585324,3.84837138,86.239,86.21,10.439]
[1773176586626,3.84837138,86.239,86.203,10.439]
[1773176589923,3.84837138,86.219,86.192,10.441]
[1773176591330,7.2952627,86.23,86.192,10.441]
[1773176591731,3.84837138,86.23,86.196,3.72621622]
[1773176592629,7.2952627,86.23,86.196,3.72621622]
[1773176594533,3.84837138,86.229,86.195,10.44]
[1773176594734,3.84837138,86.229,86.195,14.16621622]
[1773176595733,3.84837138,86.229,86.2,10.44]
[1773176596434,7.2952627,86.24,86.203,3.72621622]
[1773176596835,7.2952627,86.24,86.133,34.82]
[1773176596836,3.84837138,86.263,86.223,10.437]
[1773176597038,7.2952627,86.26,86.223,10.437]
[1773176597235,3.84837138,86.259,86.221,3.72621622]
[1773176597534,3.44689132,86.26,86.162,3.72621622]
[1773176597535,3.84837138,86.26,86.162,3.72621622]
[1773176597739,3.44689132,86.23,86.191,3.72621622]
[1773176598032,3.44689132,86.23,86.148,56.37206393]
[1773176598033,3.44689132,86.23,86.196,3.72621622]
[1773176600937,3.84837138,86.237,86.196,3.72621622]
[1773176601135,3.44689132,86.23,86.196,3.72621622]
[1773176601336,3.84837138,86.237,86.196,3.72621622]
[1773176604534,3.44689132,86.23,86.196,3.72621622]
[1773176604735,3.44689132,86.23,86.184,3.86551449]
[1773176604736,3.44689132,86.22,86.184,3.86551449]
[1773176605038,3.84717188,86.219,86.184,3.86551449]
[1773176610445,3.84717188,86.229,86.191,10.441]
[1773176610940,3.44689132,86.22,86.191,10.441]
[1773176612545,3.84717188,86.229,86.191,10.441]
[1773176613046,3.84717188,86.227,86.184,3.86551449]
[1773176613840,3.44689132,86.22,86.184,3.86551449]
[1773176614343,7.2940632,86.22,86.184,3.86551449]
[1773176614740,3.84717188,86.219,86.184,3.86551449]
[1773176616240,3.84717188,86.218,86.183,10.442]
[1773176616942,3.84717188,86.216,86.175,10.443]
[1773176618448,3.84717188,86.213,86.18,10.442]
[1773176620142,3.84717188,86.213,86.18,14.30751449]
[1773176623347,3.84717188,86.213,86.18,3.86551449]
[1773176625557,3.84717188,86.209,86.174,10.443]
[1773176625754,3.84717188,86.199,86.159,3.86551449]
[1773176627455,14.28717188,86.199,86.165,10.444]
[1773176629059,3.44464467,86.19,86.159,14.31051449]
[1773176629360,3.76818457,86.189,86.159,10.445]
[1773176634860,3.76818457,86.189,86.159,14.42064639]
[1773176638666,3.44464467,86.19,86.16,3.97564639]
[1773176639266,3.99559268,86.208,86.163,3.97564639]
[1773176639660,14.42759689,86.249,86.163,3.97564639]
[1773176639661,3.99559268,86.22,86.163,3.97564639]
[1773176639867,7.44023735,86.22,86.163,3.97564639]
[1773176641372,10.438,86.219,86.18,3.97564639]
[1773176641960,3.99559268,86.22,86.18,3.97564639]
[1773176642165,7.44023735,86.22,86.185,3.97564639]
[1773176648564,3.99559268,86.219,86.185,3.97564639]
[1773176652673,3.99559268,86.217,86.179,10.442]
[1773176652876,3.99559268,86.209,86.171,10.443]
[1773176653172,3.99559268,86.209,86.169,3.97564639]
[1773176654466,3.99559268,86.209,86.176,3.97564639]
[1773176655476,3.99559268,86.209,86.182,10.442]
[1773176656580,3.44464467,86.22,86.186,3.97564639]
[1773176667088,7.30737,86.22,86.186,3.97564639]
[1773176668592,3.86272533,86.209,86.185,10.442]
[1773176669584,3.86272533,86.209,86.178,10.442]
[1773176670886,3.86272533,86.208,86.171,10.443]
[1773176671088,3.86272533,86.199,86.161,3.81177501]
[1773176672490,3.86272533,86.199,86.163,3.81177501]
[1773176673380,3.86272533,86.199,86.164,10.444]
[1773176673583,3.86272533,86.199,86.165,3.81177501]
[1773176679097,3.86272533,86.199,86.164,10.444]
[1773176681798,3.86272533,86.199,86.164,14.13708745]
[1773176682199,3.99043548,86.189,86.152,3.69308745]
[1773176683505,3.99043548,86.189,86.16,10.445]
[1773176688503,3.67387925,86.182,86.131,3.67251644]
[1773176688703,3.4464264,86.18,86.131,3.67251644]
[1773176688909,3.67387925,86.198,86.151,3.67251644]
[1773176690107,14.42759689,86.234,86.167,3.97716598]
[1773176690108,3.4464264,86.21,86.167,3.97716598]
[1773176691007,3.4464264,86.22,86.167,3.97716598]
[1773176691206,3.92301545,86.218,86.167,3.97716598]
[1773176691505,3.92301545,86.215,86.176,3.97716598]
[1773176695908,10.438,86.216,86.18,3.97716598]
[1773176701714,3.92301545,86.225,86.18,3.97716598]
[1773176701917,3.92301545,86.245,86.191,3.97716598]
[1773176702108,8.84716608,86.244,86.191,3.97716598]
[1773176702308,8.84716608,86.243,86.191,3.97716598]
[1773176702609,3.92301545,86.245,86.191,3.97716598]
[1773176702610,8.84716608,86.242,86.191,3.97716598]
[1773176702810,3.4464264,86.24,86.191,3.97716598]
[1773176703110,8.84716608,86.239,86.191,3.97716598]
[1773176703307,8.84716608,86.238,86.204,10.439]
[1773176703507,3.4464264,86.24,86.204,10.439]
[1773176703508,8.84716608,86.237,86.204,14.41616598]
[1773176703707,8.84716608,86.236,86.204,14.41616598]
[1773176703912,8.84716608,86.235,86.204,14.41616598]
[1773176704115,3.4464264,86.24,86.204,14.41616598]
[1773176704413,8.84322288,86.239,86.204,14.41616598]
[1773176704713,3.4464264,86.24,86.205,3.97716598]
[1773176704909,8.84123004,86.239,86.205,3.97716598]
[1773176705102,3.4464264,86.24,86.205,3.97716598]
[1773176706608,3.92301545,86.245,86.208,3.97716598]
[1773176706814,7.36944185,86.25,86.208,3.97716598]
[1773176707009,7.36944185,86.26,86.21,3.4464264]
[1773176707211,7.36944185,86.26,86.211,3.97716598]
[1773176707416,3.4464264,86.26,86.211,3.97716598]
[1773176707717,3.92301545,86.259,86.211,3.97716598]
[1773176708417,3.92301545,86.269,86.227,3.97716598]
[1773176708614,3.92301545,86.279,86.227,3.97716598]
[1773176708914,3.4464264,86.25,86.206,3.97716598]
[1773176709316,7.36944185,86.25,86.206,3.97716598]
[1773176709817,3.92301545,86.25,86.206,3.97716598]
[1773176710019,3.92301545,86.25,86.221,10.437]
[1773176711315,3.92301545,86.259,86.23,10.436]
[1773176711512,3.92301545,86.269,86.23,14.41316598]
[1773176711712,3.4464264,86.26,86.23,3.97716598]
[1773176717820,3.92301545,86.266,86.23,3.97716598]
[1773176718422,3.4464264,86.27,86.23,3.97716598]
[1773176718423,3.92301545,86.264,86.23,3.97716598]
[1773176728026,3.92301545,86.264,86.231,10.436]
[1773176731123,31.62200647,86.305,86.23,3.97716598]
[1773176731124,3.932248,86.288,86.244,3.99351354]
[1773176731324,20.851,86.322,86.167,162.466]
[1773176731325,3.932248,86.279,86.234,3.99351354]
[1773176731625,3.4464264,86.27,86.237,3.99351354]
[1773176731826,3.4464264,86.28,86.231,3.99351354]
[1773176732026,3.4464264,86.28,86.238,3.99351354]
[1773176732425,3.4464264,86.27,86.238,3.99351354]
[1773176733227,10.431,86.274,86.238,3.99351354]
[1773176733726,14.363248,86.274,86.238,3.99351354]
[1773176733928,10.431,86.272,86.238,3.99351354]
[1773176734726,10.43,86.279,86.24,3.99351354]
[1773176734921,3.4464264,86.28,86.24,3.99351354]
[1773176735127,3.932248,86.279,86.24,3.99351354]
[1773176737329,3.932248,86.277,86.24,3.99351354]
[1773176738334,14.363248,86.275,86.24,3.99351354]
[1773176739436,3.932248,86.275,86.24,3.99351354]
[1773176739632,3.932248,86.297,86.253,3.99351354]
[1773176739838,3.4464264,86.33,86.281,3.99351354]
[1773176740036,8.79613989,86.329,86.291,3.99351354]
[1773176740233,3.932248,86.335,86.291,3.99351354]
[1773176740440,3.932248,86.335,86.227,34.81]
[1773176740441,10.422,86.349,86.301,3.99351354]
[1773176740738,3.4464264,86.35,86.301,3.99351354]
[1773176742040,3.932248,86.329,86.288,3.99351354]
[1773176742535,3.4464264,86.34,86.291,3.99351354]
[1773176743132,10.422,86.346,86.302,3.99351354]
[1773176743534,3.932248,86.356,86.302,3.99351354]
[1773176743734,3.4464264,86.36,86.311,3.99351354]
[1773176744346,10.421,86.357,86.311,3.99351354]
[1773176745436,3.4464264,86.35,86.311,3.99351354]
[1773176747641,3.43390857,86.35,86.311,3.99351354]
[1773176752247,3.43390857,86.36,86.313,3.71013918]
[1773176753447,3.43390857,86.36,86.32,3.71013918]
[1773176754152,3.43390857,86.36,86.324,3.71013918]
[1773176758458,13.85490857,86.36,86.324,3.71013918]
[1773176758659,3.43390857,86.36,86.324,3.71013918]
[1773176759458,3.89854527,86.349,86.308,10.427]
[1773176759658,3.89854527,86.349,86.309,3.71013918]
[1773176760158,3.43390857,86.35,86.311,3.71013918]
[1773176760660,3.89854527,86.36,86.269,20.863]
[1773176760661,3.43390857,86.36,86.313,3.71013918]
[1773176761362,3.43390857,86.36,86.321,3.71013918]
[1773176762459,3.43390857,86.36,86.323,3.71013918]
[1773176764463,0.00076782,86.373,86.326,3.71013918]
[1773176764663,3.43390857,86.37,86.326,3.71013918]
[1773176765364,3.43390857,86.37,86.334,3.71013918]
[1773176767362,0.00076782,86.373,86.334,3.71013918]
[1773176770067,3.43390857,86.37,86.334,3.71013918]
[1773176771868,10.419,86.369,86.334,3.71013918]
[1773176774070,3.43390857,86.37,86.334,3.71013918]
[1773176774270,0.00076782,86.373,86.341,3.71013918]
[1773176774473,0.00078649,86.383,86.368,3.71013918]
[1773176774676,0.00078649,86.383,86.371,3.71013918]
[1773176775173,0.00078649,86.383,86.372,10.419]
[1773176775368,0.00078649,86.383,86.373,3.71013918]
[1773176778479,0.00078649,86.383,86.357,3.71013918]
[1773176779379,0.00078649,86.383,86.302,20.855]
[1773176779380,0.00078649,86.383,86.342,14.48383925]
[1773176779575,3.43390857,86.38,86.342,14.48383925]
[1773176779982,3.43390857,86.38,86.343,4.06083925]
[1773176782183,0.00078649,86.383,86.346,4.06083925]
[1773176783285,0.00078649,86.383,86.348,4.06083925]
[1773176786079,0.00078649,86.383,86.33,3.43390857]
[1773176786080,3.7320605,86.379,86.334,4.06083925]
[1773176786281,3.43390857,86.36,86.31,7.49474782]
[1773176786476,7.16596907,86.36,86.311,4.06083925]
[1773176787384,3.43390857,86.36,86.328,10.424]
[1773176787884,3.43390857,86.36,86.323,4.06083925]
[1773176788876,3.7320605,86.359,86.32,10.425]
[1773176789674,7.16596907,86.35,86.311,10.426]
[1773176789877,3.43390857,86.35,86.312,4.06083925]
[1773176790078,10.421,86.358,86.312,4.06083925]
[1773176791488,10.421,86.358,86.314,4.06083925]
[1773176792480,10.421,86.358,86.317,14.48683925]
[1773176793388,3.7320605,86.357,86.317,10.426]
[1773176794886,3.7320605,86.339,86.281,4.06083925]
[1773176795185,3.7320605,86.329,86.281,4.06083925]
[1773176796288,3.43390857,86.32,86.281,4.06083925]
[1773176796481,3.7320605,86.329,86.289,10.429]
[1773176802482,3.7320605,86.329,86.289,14.48983925]
[1773176802682,3.7320605,86.339,86.292,4.06083925]
[1773176804488,3.7320605,86.337,86.295,10.428]
[1773176805480,10.424,86.335,86.295,10.428]
[1773176805988,14.1560605,86.335,86.292,4.06083925]
[1773176806783,10.424,86.332,86.292,4.06083925]
[1773176808692,14.48334422,86.332,86.292,4.06083925]
[1773176812691,3.71325799,86.331,86.292,14.48983925]
[1773176814594,3.71325799,86.331,86.295,3.81090301]
[1773176815393,3.71325799,86.331,86.297,10.428]
[1773176816292,3.71325799,86.331,86.295,3.81090301]
[1773176817491,10.424,86.33,86.295,3.81090301]
[1773176818096,3.71325799,86.324,86.277,3.81090301]
[1773176819486,10.425,86.319,86.278,3.81090301]
[1773176820491,14.13825799,86.319,86.279,10.43]
[1773176820686,14.13825799,86.319,86.279,14.24090301]
[1773176821394,10.426,86.314,86.279,3.81090301]
[1773176821894,14.13925799,86.314,86.279,3.81090301]
[1773176822096,3.71325799,86.313,86.279,3.81090301]
[1773176824495,3.71325799,86.296,86.257,10.433]
[1773176824698,3.71325799,86.296,86.244,3.81090301]
[1773176824894,3.71325799,86.289,86.251,3.81090301]
[1773176825094,3.71325799,86.309,86.251,3.81090301]
[1773176826600,7.14879421,86.3,86.255,3.81090301]
[1773176826997,14.14125799,86.297,86.255,3.81090301]
[1773176827202,3.71325799,86.296,86.255,3.81090301]
[1773176828502,10.428,86.294,86.255,3.81090301]
[1773176829502,14.14125799,86.294,86.255,3.81090301]
[1773176831104,3.71325799,86.289,86.255,3.81090301]
[1773176831305,3.71325799,86.286,86.255,3.81090301]
[1773176832306,3.71325799,86.279,86.237,3.81090301]
[1773176832506,3.71325799,86.279,86.221,3.81090301]
[1773176833512,3.71325799,86.276,86.23,3.81090301]
[1773176836906,3.71325799,86.274,86.23,3.81090301]
[1773176837111,3.71325799,86.269,86.23,3.81090301]
[1773176839508,3.77028355,86.294,86.241,3.82146724]
[1773176839715,3.77028355,86.306,86.261,3.82146724]
[1773176841416,14.19728355,86.303,86.261,3.82146724]
[1773176842114,3.77028355,86.302,86.261,3.82146724]
[1773176843717,3.77028355,86.298,86.261,3.82146724]
[1773176844620,3.77028355,86.298,86.263,3.82146724]
[1773176845008,3.77028355,86.298,86.251,3.82146724]
[1773176846413,3.77028355,86.296,86.252,3.82146724]
[1773176847810,3.77028355,86.309,86.261,3.82146724]
[1773176848420,10.427,86.303,86.263,3.82146724]
[1773176854229,14.19728355,86.303,86.263,3.82146724]
[1773176855726,3.77028355,86.317,86.271,3.82146724]
[1773176855934,3.77028355,86.328,86.281,3.82146724]
[1773176856142,8.96705979,86.327,86.281,3.82146724]
[1773176856332,12.73734334,86.326,86.281,3.82146724]
[1773176856632,12.73734334,86.325,86.281,3.82146724]
[1773176856826,8.96705979,86.324,86.281,3.82146724]
[1773176857031,8.96705979,86.323,86.281,3.82146724]
[1773176857232,8.96705979,86.322,86.281,3.82146724]
[1773176857428,10.425,86.324,86.283,3.82146724]
[1773176857636,8.968584,86.323,86.283,3.82146724]
[1773176857835,10.425,86.324,86.283,3.82146724]
[1773176857836,8.968584,86.322,86.283,3.82146724]
[1773176858032,8.96964068,86.321,86.283,3.82146724]
[1773176858337,10.425,86.324,86.283,3.82146724]
[1773176858538,8.97007612,86.323,86.283,3.82146724]
[1773176858740,8.97007612,86.322,86.283,3.82146724]
[1773176858939,8.97007612,86.321,86.283,3.82146724]
[1773176859139,3.77028355,86.323,86.283,3.82146724]
[1773176859339,10.425,86.321,86.283,3.82146724]
[1773176861539,3.77028355,86.32,86.283,3.82146724]
[1773176862637,3.77028355,86.318,86.273,3.82146724]
[1773176863342,14.19628355,86.314,86.273,3.82146724]
[1773176868251,10.426,86.311,86.273,3.82146724]
[1773176869143,3.97485841,86.299,86.241,3.85549018]
[1773176869443,3.97485841,86.299,86.251,3.99140923]
[1773176870343,3.97485841,86.299,86.255,3.99140923]
[1773176871346,3.97485841,86.299,86.258,14.42440923]
[1773176871945,3.97485841,86.299,86.263,14.42340923]
[1773176872149,3.71820919,86.312,86.271,3.99140923]
[1773176873441,3.71820919,86.312,86.273,3.99140923]
[1773176876351,3.71820919,86.312,86.275,3.99140923]
[1773176877459,3.71820919,86.312,86.276,14.42240923]
[1773176879053,3.43673711,86.31,86.276,14.42240923]
[1773176879759,3.43673711,86.31,86.277,3.99140923]
[1773176880361,3.71820919,86.312,86.277,3.99140923]
[1773176880958,10.425,86.321,86.28,3.99140923]
[1773176881756,10.424,86.33,86.291,3.99140923]
[1773176882059,8.8596332,86.329,86.291,3.99140923]
[1773176882264,8.8596332,86.328,86.291,3.99140923]
[1773176882562,8.8596332,86.327,86.291,3.99140923]
[1773176882762,17.5789463,86.33,86.291,3.99140923]
[1773176882961,8.86181107,86.329,86.291,3.99140923]
[1773176883158,17.5789463,86.33,86.291,3.99140923]
[1773176883159,3.71820919,86.327,86.291,3.99140923]
[1773176883461,8.86181107,86.326,86.291,3.99140923]
[1773176883662,3.71820919,86.327,86.291,3.99140923]
[1773176883963,8.86466927,86.326,86.291,3.99140923]
[1773176884161,3.71820919,86.327,86.294,10.428]
[1773176884461,8.86787846,86.326,86.294,10.428]
[1773176884659,3.71820919,86.327,86.294,10.428]
[1773176884863,8.86787845,86.326,86.294,10.428]
[1773176885057,3.71820919,86.327,86.294,10.428]
[1773176885361,3.71820919,86.327,86.291,3.99140923]
[1773176886953,10.424,86.332,86.291,3.99140923]
[1773176887162,10.423,86.339,86.297,3.99140923]
[1773176888354,10.423,86.339,86.301,10.428]
[1773176888556,10.423,86.339,86.302,3.99140923]
[1773176888859,7.1549463,86.34,86.302,3.99140923]
[1773176895269,10.422,86.347,86.308,3.99140923]
[1773176896360,10.422,86.347,86.31,3.99140923]
[1773176898266,10.422,86.347,86.3,3.43673711]
[1773176898267,3.43673711,86.35,86.313,3.99140923]
[1773176901666,3.8010154,86.349,86.313,3.99140923]
[1773176901871,3.8010154,86.329,86.291,3.88644351]
[1773176902070,3.43673711,86.32,86.291,3.88644351]
[1773176902668,3.8010154,86.309,86.261,3.88644351]
[1773176902868,3.8010154,86.299,86.261,3.88644351]
[1773176903067,3.8010154,86.299,86.24,283.08617877]
[1773176903068,3.8010154,86.297,86.255,10.433]
[1773176903373,3.8010154,86.289,86.25,3.88644351]
[1773176903767,3.43673711,86.28,86.25,3.88644351]
[1773176905473,3.43673711,86.28,86.25,14.32044351]
[1773176906267,10.428,86.296,86.254,3.88644351]
[1773176907373,10.428,86.296,86.256,3.88644351]
[1773176911681,10.428,86.296,86.258,3.88644351]
[1773176912181,3.8010154,86.289,86.245,3.88644351]
[1773176913378,3.8010154,86.289,86.251,3.88644351]
[1773176914383,3.8010154,86.289,86.253,10.433]
[1773176915887,3.8010154,86.289,86.256,10.433]
[1773176917491,3.8010154,86.289,86.256,14.31944351]
[1773176917694,7.23775251,86.3,86.26,3.88644351]
[1773176917895,3.8010154,86.299,86.26,3.88644351]
[1773176919384,3.8010154,86.299,86.262,3.88644351]
[1773176920491,3.8010154,86.299,86.263,10.432]
[1773176920993,3.8010154,86.299,86.264,3.88644351]
[1773176923793,10.427,86.309,86.269,3.88644351]
[1773176924495,3.8010154,86.31,86.273,3.88644351]
[1773176926093,10.70015083,86.349,86.24,279.64944166]
[1773176926094,3.8010154,86.299,86.258,3.88644351]
[1773176927393,3.81025528,86.298,86.258,14.31944351]
[1773176928296,3.81025528,86.296,86.258,14.31944351]
[1773176931405,3.43857872,86.29,86.258,14.31944351]
[1773176932503,3.82356996,86.292,86.258,14.31944351]
[1773176933107,3.82356996,86.289,86.251,10.434]
[1773176934308,10.43,86.284,86.247,3.82706481]
[1773176934510,3.82356996,86.289,86.247,3.82706481]
[1773176935505,3.82356996,86.289,86.254,10.433]
[1773176941512,3.82356996,86.259,86.221,3.82706481]
[1773176943414,3.82356996,86.259,86.228,10.436]
[1773176943610,3.82356996,86.259,86.221,3.82706481]
[1773176945414,3.82356996,86.257,86.221,14.26406481]
[1773176946712,3.82356996,86.257,86.222,3.82706481]
[1773176954021,3.82356996,86.257,86.223,10.437]
[1773176954217,3.82356996,86.257,86.224,3.82706481]
[1773176956022,3.82356996,86.257,86.226,3.82706481]
[1773176957316,3.82356996,86.257,86.227,10.437]
[1773176963028,3.82356996,86.257,86.227,14.31972118]
[1773176964428,3.82356996,86.257,86.228,3.88272118]
[1773176972734,3.95289839,86.249,86.209,3.88272118]
[1773176972936,3.95289839,86.239,86.191,3.88272118]
[1773176973334,3.95289839,86.229,86.191,3.88272118]
[1773176974338,14.38989839,86.227,86.191,3.88272118]
[1773176975540,3.95289839,86.226,86.191,3.88272118]
[1773176977642,3.95289839,86.219,86.178,3.88272118]
[1773176979045,3.95289839,86.229,86.186,3.88272118]
[1773176980253,7.39147711,86.24,86.19,3.88272118]
[1773176980446,3.95289839,86.24,86.191,3.88272118]
[1773176981350,3.95289839,86.24,86.201,3.88272118]
[1773176984052,7.39147711,86.24,86.201,3.88272118]
[1773176986160,7.39147711,86.24,86.202,10.439]
[1773176986857,3.95289839,86.239,86.202,10.439]
[1773176987458,3.95289839,86.239,86.203,3.88472811]
[1773176989860,3.82696914,86.253,86.19,3.4428755]
[1773176990060,3.82696914,86.249,86.205,4.06544716]
[1773176990255,3.82696914,86.247,86.205,4.06544716]
[1773176990460,3.82696914,86.245,86.205,4.06544716]
[1773176991462,3.82696914,86.245,86.211,10.438]
[1773176992064,3.82696914,86.239,86.205,4.06544716]
[1773176994761,3.4428755,86.24,86.195,4.06544716]
[1773176994762,3.82696914,86.237,86.195,4.06544716]
[1773176994962,8.82789946,86.236,86.195,4.06544716]
[1773176995158,10.436,86.236,86.198,4.06544716]
[1773176995360,3.82696914,86.237,86.198,4.06544716]
[1773176996566,14.26296914,86.235,86.198,4.06544716]
[1773176997268,14.26296914,86.235,86.18,3.4428755]
[1773176997269,3.82696914,86.229,86.181,4.06544716]
[1773176997668,3.82696914,86.229,86.197,14.50544716]
[1773176999262,3.82696914,86.229,86.202,10.439]
[1773177000065,8.82768899,86.236,86.202,10.439]
[1773177000262,3.82696914,86.239,86.202,10.439]
[1773177000465,8.83310037,86.238,86.202,10.439]
[1773177000671,8.83310037,86.237,86.202,10.439]
[1773177000867,3.82696914,86.239,86.202,10.439]
[1773177000868,8.83310037,86.236,86.202,10.439]
[1773177001074,10.435,86.238,86.202,14.50444716]
[1773177001272,8.83298673,86.237,86.202,14.50444716]
[1773177001471,8.83298673,86.236,86.202,14.50444716]
[1773177001773,3.82696914,86.237,86.202,14.50444716]
[1773177001973,8.83316344,86.236,86.202,14.50444716]
[1773177002175,3.82696914,86.237,86.202,14.50444716]
[1773177002470,3.82696914,86.235,86.202,14.50444716]
[1773177005671,3.82696914,86.229,86.196,4.06544716]
[1773177006176,3.82696914,86.229,86.171,4.06544716]
[1773177006673,10.436,86.228,86.194,10.44]
[1773177006972,3.82696914,86.229,86.194,10.44]
[1773177007775,3.82696914,86.229,86.194,14.50544716]
[1773177007971,3.82696914,86.229,86.195,4.06544716]
[1773177012084,3.4428755,86.22,86.195,4.06544716]
[1773177012484,3.82696914,86.229,86.195,4.06544716]
[1773177014484,3.82696914,86.229,86.195,14.50544716]
[1773177015382,3.82696914,86.229,86.196,4.06544716]
[1773177017378,8.85554958,86.228,86.196,4.06544716]
[1773177017578,3.82696914,86.229,86.196,4.06544716]
[1773177017776,8.85554958,86.228,86.196,4.06544716]
[1773177018086,3.82696914,86.229,86.196,4.06544716]
[1773177018287,8.85564071,86.228,86.196,4.06544716]
[1773177018587,3.82696914,86.229,86.196,4.06544716]
[1773177018781,8.8558067,86.228,86.196,4.06544716]
[1773177019077,3.82696914,86.229,86.196,4.06544716]
[1773177019280,8.85593161,86.228,86.196,4.06544716]
[1773177019576,3.82696914,86.229,86.196,4.06544716]
[1773177019782,4.0100504,86.219,86.181,10.442]
[1773177020086,3.4428755,86.21,86.173,4.04560931]
[1773177020986,3.4428755,86.2,86.175,4.04560931]
[1773177026896,4.0100504,86.209,86.175,4.04560931]
[1773177027294,4.0100504,86.199,86.168,10.444]
[1773177027796,4.0100504,86.199,86.168,14.48960931]
[1773177028295,4.0100504,86.199,86.173,10.443]
[1773177028694,4.0100504,86.209,86.173,10.443]
[1773177028896,8.8409356,86.208,86.173,10.443]
[1773177029098,4.0100504,86.209,86.173,10.443]
[1773177029292,3.4428755,86.21,86.173,10.443]
[1773177029293,12.84878646,86.208,86.173,10.443]
[1773177029502,4.0100504,86.208,86.173,10.443]
[1773177030091,3.4428755,86.2,86.173,10.443]
[1773177032397,3.4428755,86.2,86.173,14.48860931]
[1773177033594,3.4428755,86.19,86.163,4.04560931]
[1773177036006,4.0100504,86.199,86.163,4.04560931]
[1773177036207,3.4428755,86.21,86.163,4.04560931]
[1773177036400,3.4428755,86.2,86.163,4.04560931]
[1773177037406,3.4428755,86.2,86.168,10.444]
[1773177039006,4.0100504,86.205,86.168,10.444]
[1773177039597,4.0100504,86.189,86.141,4.04560931]
[1773177041405,4.0100504,86.189,86.151,10.446]
[1773177043503,4.0100504,86.189,86.155,14.49060931]
[1773177044408,4.0100504,86.189,86.155,4.04560931]
[1773177045406,10.81211378,86.222,86.117,20.9]
[1773177045407,4.0100504,86.179,86.145,4.04560931]
[1773177047508,4.0100504,86.179,86.145,14.49160931]
[1773177047704,4.0100504,86.179,86.145,10.446]
[1773177050210,4.0100504,86.179,86.151,10.446]
[1773177050409,4.0100504,86.179,86.145,3.67613189]
[1773177051619,4.06616237,86.169,86.142,10.447]
[1773177052413,4.06616237,86.169,86.131,14.12413189]
[1773177052620,3.4475346,86.16,86.131,14.12413189]
[1773177053015,7.51369697,86.16,86.131,3.67613189]
[1773177053216,7.51369697,86.16,86.124,10.449]
[1773177055016,4.06616237,86.159,86.124,10.449]
[1773177060223,4.06616237,86.159,86.124,14.12513189]
[1773177062422,4.06616237,86.159,86.126,14.12513189]
[1773177062824,4.06616237,86.159,86.127,3.67613189]
[1773177068935,10.442,86.178,86.131,3.67613189]
[1773177069129,3.4475346,86.17,86.131,3.67613189]
[1773177070033,7.51369697,86.17,86.131,3.67613189]
[1773177070534,7.51369697,86.17,86.137,10.447]
[1773177071332,3.4475346,86.18,86.142,3.67613189]
[1773177071635,4.06616237,86.189,86.142,3.67613189]
[1773177072029,4.06616237,86.189,86.152,3.67613189]
[1773177072229,14.388173,86.231,86.152,3.67613189]
[1773177072230,3.4475346,86.2,86.152,3.67613189]
[1773177072433,3.4475346,86.19,86.152,3.67613189]
[1773177080337,3.4475346,86.19,86.154,3.73183823]
[1773177081635,7.324646,86.19,86.154,3.73183823]
[1773177084443,7.324646,86.19,86.156,3.73183823]
[1773177085741,8.82793947,86.189,86.156,3.73183823]
[1773177085941,8.82793947,86.188,86.156,3.73183823]
[1773177086141,8.82793947,86.187,86.156,3.73183823]
[1773177086341,8.82793947,86.186,86.156,3.73183823]
[1773177086541,7.324646,86.19,86.156,3.73183823]
[1773177086742,8.8286176,86.189,86.156,3.73183823]
[1773177086943,8.8286176,86.188,86.156,3.73183823]
[1773177087139,3.4475346,86.18,86.156,3.73183823]
[1773177087341,3.8771114,86.186,86.156,3.73183823]
[1773177092548,10.441,86.187,86.156,3.73183823]
[1773177092744,3.4475346,86.18,86.156,3.73183823]
[1773177093650,3.4475346,86.19,86.159,3.73183823]
[1773177093949,8.76468572,86.189,86.159,3.73183823]
[1773177094154,8.76468572,86.188,86.159,3.73183823]
[1773177094349,3.4475346,86.19,86.159,3.73183823]
[1773177094549,8.76463387,86.189,86.159,3.73183823]
[1773177094749,8.76463387,86.188,86.159,3.73183823]
[1773177094952,3.4475346,86.19,86.159,3.73183823]